[Event "85th Armenian Mens-ch 2024"]
[Site "Yerevan"]
[Date "2024.11.25"]
[Round "2.1"]
[White "Sargsyan, Sargis Vach."]
[Black "Piliposyan, Robert"]
[Result "1-0"]
[Annotator "TA"]
[ECO "C83"]
[WhiteElo "2321"]
[BlackElo "2418"]
[PlyCount "131"]
[EventDate "2024.11.24"]
[EventCountry "ARM"]
[SourceTitle "playchess.com"]
[Source "ChessBase"]
[SourceQuality "1"]
[TimeControl "40/5400+30:1800+30"]

{[%evp 21,131,35,33,30,46,41,43,38,37,26,31,25,26,21,20,24,12,27,22,20,26,58,72,54,96,75,89,83,125,54,50,47,56,35,97,85,117,121,225,212,197,45,39,45,35,37,46,45,68,59,60,54,58,51,43,51,468,463,616,607,606,600,562,413,413,413,396,397,452,454,449,437,523,523,523,516,465,475,469,428,611,596,813,724,1284,1256,1276,1256,1187,1133,868,671,5341,1305,1441,1441,1102,1073,5431,5579,5187,5138,5065,5019,5012,4882,4768,4614,29966,1007,1007,825]} 1. e4 {[%emt 0:01:03]} e5 {[%emt 0:00:20]} 2. Nf3 {[%emt 0:00:17]} Nc6 {[%emt 0:00:06]} 3. Bb5 {[%emt 0:00:20][%cal Bf1b5,Bb5a4,Ba4b3,Bb3c2,Bc2b1][%mdl 32]} a6 {[%emt 0:00:07]} 4. Ba4 {[%emt 0:00:02]} Nf6 {[%emt 0:00:55][%cal Bg8f6,Bf6e4,Be4c5][%mdl 32]} 5. O-O {[%emt 0:00:57]} Nxe4 {[%emt 0:00:07]} 6. d4 {[%emt 0:00:14]} b5 {[%emt 0:00:11]} 7. Bb3 {[%emt 0:00:06]} d5 {[%emt 0:00:06][%cal Bd7d5,Bd5d4,Bd4d3][%mdl 32]} 8. dxe5 {[%emt 0:00:10]} Be6 {[%emt 0:00:06]} 9. Nbd2 {[%emt 0:01:20]} Nc5 {[%emt 0:00:13]} 10. c3 {[%emt 0:00:06]} Be7 {[%emt 0:00:04]} 11. Bc2 {[%emt 0:00:08]} d4 {[%emt 0:00:04]} 12. Nb3 {[%emt 0:00:09]} d3 {[%emt 0:00:05]} 13. Bb1 {[%emt 0:00:07]} Nxb3 {[%emt 0:00:05]} 14. axb3 {[%emt 0:00:02] White is slightly better.} Bf5 {[%emt 0:00:06]} 15. Be3 {[%emt 0:00:14]} O-O {[%emt 0:00:12]} 16. Bd4 {[%emt 0:00:05]} Qd5 {[%emt 0:00:08]} 17. Re1 {[%emt 0:00:06]} Rfd8 {[%emt 0:10:10]} 18. h4 {[%emt 0:01:20]} d2 {[%emt 0:04:03]} 19. Qxd2 {[%emt 0:00:26]} (19. Bxf5 {with more complications.} dxe1=Q+ 20. Qxe1 Qxb3 21. e6) 19... Bxb1 {[%emt 0:00:44]} 20. Raxb1 {[%emt 0:00:05]} Nxd4 {[%emt 0:14:37]} (20... Qxb3 {keeps more tension.} 21. e6 fxe6 22. Qf4 Bd6) 21. Qxd4 {[%emt 0:01:34]} Qxb3 {[%emt 0:05:54]} 22. Qg4 {[%emt 0:00:09]} Qe6 {[%emt 0:23:57]} 23. Qxe6 {[%emt 0:01:43]} fxe6 {[%emt 0:00:16]} 24. Nd4 {[%emt 0:00:07]} Bxh4 {[%emt 0:04:51] [#]} 25. g3 {[%emt 0:08:08]} ({Don't take} 25. Nxe6 Rd2 26. g3 (26. Nxc7 $2 Bxf2+ 27. Kh2 Rc8 $19) 26... Kf7 $14) (25. Re4 $1 $16 {[%cal Re4h4]} Be7 26. Nxe6) 25... Be7 $14 {[%emt 0:00:12]} 26. Nxe6 {[%emt 0:00:06]} Rdc8 {[%emt 0:03:56]} 27. f4 {[%emt 0:01:45]} Kf7 {[%emt 0:09:44]} (27... c5 $14) 28. f5 $16 {[%emt 0:00:45] aiming for Rbd1. White is much more active.} g6 {[%emt 0:00:05]} 29. g4 {[%emt 0:03:10]} gxf5 {[%emt 0:00:52]} (29... h5 $16) 30. gxf5 $18 {[%emt 0:00:04]} Rg8+ {[%emt 0:00:03]} 31. Kh2 $2 {[%emt 0:06:00]} (31. Kf1 $18) 31... Rg4 $14 {[%emt 0:00:25]} 32. Re3 {[%emt 0:00:07][%cal Oe3h3] Threatens to win with Rh3!} Rag8 {[%emt 0:00:35]} 33. Rh3 $36 {[%emt 0:10:45][%mdl 2048] White has the initiative.} Bh4 {[%emt 0:00:48]} 34. Kh1 {[%emt 0:00:05]} h5 {[%emt 0:04:22]} 35. Nxc7 {[%emt 0:01:24][%cal Ob1f1]} Bg3 {[%emt 0:01:35]} 36. e6+ {[%emt 0:00:26][%cal Be5e6,Be6e7][%mdl 32]} (36. Nxa6 Bxe5 37. Rxh5 R8g5 38. Rxg5 Rxg5 $16) 36... Kf6 {[%emt 0:00:45]} 37. Nd5+ {[%emt 0:00:13]} (37. Nxa6 Kxf5 38. Rxh5+ Kxe6 $17) 37... Ke5 $1 {[%emt 0:00:15]} 38. Rd1 {[%emt 0:10:02] e7 is the strong threat.} R4g5 $2 {[%emt 0:10:33][%mdl 8192] [#] This move loses the game for Black.} (38... Rh4 $14 39. Rxh4 Bxh4) 39. e7 $1 $18 {[%emt 0:01:22]} Re8 {[%emt 0:07:23]} 40. f6 {[%emt 0:00:00] White wants to mate with f7.} Ke6 {[%emt 0:00:00] [#]} 41. Rxg3 $1 {[%emt 0:01:18][%mdl 512]} Rxg3 {[%emt 0:00:11]} 42. Nc7+ {[%emt 0:00:03]} Kxf6 {[%emt 0:00:04]} 43. Nxe8+ {[%emt 0:00:04]} Kxe7 {[%emt 0:00:01][%mdl 4096] Endgame. KRN-KR} 44. Nc7 {[%emt 0:00:07]} Rg6 {[%emt 0:00:32]} 45. Ra1 {[%emt 0:00:07]} Rd6 {[%emt 0:01:01]} 46. Nxa6 {[%emt 0:00:49]} Rd2 {[%emt 0:00:05]} 47. b4 {[%emt 0:00:25]} Kd6 {[%emt 0:00:25]} 48. Rg1 {[%emt 0:02:54]} Rc2 {[%emt 0:01:38]} 49. Rg3 {[%emt 0:02:43]} Kd5 {[%emt 0:01:00]} 50. Rh3 {[%emt 0:00:49]} h4 {[%emt 0:00:54]} (50... Kc4 $142 51. Rxh5 Rc1+ 52. Kg2 Rc2+ 53. Kf1 Rc1+ 54. Ke2 Rc2+ 55. Kd1 Ra2) 51. Nc7+ {[%emt 0:05:05]} Kc4 {[%emt 0:02:20]} 52. Rxh4+ {[%emt 0:05:57]} Kxc3 {[%emt 0:00:09]} 53. Nxb5+ {[%emt 0:00:02]} Kd3 {[%emt 0:00:04]} 54. Rh3+ {[%emt 0:00:16]} Ke4 {[%emt 0:00:06]} 55. Rb3 {[%emt 0:00:19]} Kd5 {[%emt 0:01:04]} 56. Na3 {[%emt 0:00:45]} Rd2 {[%emt 0:00:40]} 57. Kg1 {[%emt 0:01:00] Prevents Rf2. b5 would now be deadly.} Kc6 {[%emt 0:00:07]} 58. Kf1 {[%emt 0:00:15]} Rh2 {[%emt 0:00:16]} 59. Rc3+ {[%emt 0:00:45]} Kb6 {[%emt 0:00:07]} 60. Ke1 {[%emt 0:01:10]} Rh4 {[%emt 0:00:12]} 61. Nc2 {[%emt 0:00:22]} Rh2 {[%emt 0:00:11]} 62. Kd1 {[%emt 0:00:23]} Kb5 {[%emt 0:00:06]} 63. Kc1 {[%emt 0:00:14]} Ka4 {[%emt 0:00:12]} 64. Kb2 {[%emt 0:00:24] Intending Rc5 and mate.} Rg2 {[%emt 0:00:12]} 65. Ra3+ {[%emt 0:00:33]} (65. Rc5 $142 Rg5 66. Kc3 Rh5 67. Ne3 Rxc5+ 68. bxc5 Kb5 69. Kd4 Kc6 70. Kc4) 65... Kb5 {[%emt 0:00:05]} 66. Ra5+ {[%emt 0:00:03] Weighted Error Value: White=0.17 (very precise) /Black=0.35.  Loses game:     	---       	Black=1      Mistake:       	White=2     	Black=3      Inaccurate:     	---       	Black=6      OK:         	White=20    	Black=14     Best:        	White=5     	Black=7      Strong:       	White=1     	Black=1} 1-0

[Event "85th Armenian Mens-ch 2024"]
[Site "Yerevan"]
[Date "2024.11.25"]
[Round "2.2"]
[White "Gasparyan, Erik R."]
[Black "Hakobyan, Erik"]
[Result "1/2-1/2"]
[Annotator "TA"]
[ECO "C54"]
[WhiteElo "2371"]
[BlackElo "2409"]
[PlyCount "38"]
[EventDate "2024.11.24"]
[EventCountry "ARM"]
[SourceTitle "playchess.com"]
[Source "ChessBase"]
[SourceQuality "1"]
[TimeControl "40/5400+30:1800+30"]

{[%evp 10,38,12,26,14,17,25,16,17,10,24,15,15,20,17,0,20,21,19,25,41,18,48,41,46,-6,-14,-11,-10,-9,-10]} 1. e4 {[%emt 0:00:03]} e5 {[%emt 0:03:14]} 2. Nf3 {[%emt 0:00:13]} Nc6 {[%emt 0:00:06]} 3. Bc4 {[%emt 0:00:17]} Nf6 {[%emt 0:01:49]} 4. d3 {[%emt 0:00:08]} Bc5 {[%emt 0:00:12]} 5. c3 {[%emt 0:01:19]} d6 {[%emt 0:00:10]} 6. O-O {[%emt 0:00:30]} a5 {[%emt 0:00:47]} 7. Re1 {[%emt 0:01:04]} Ba7 {[%emt 0:00:09]} 8. Nbd2 {[%emt 0:05:58]} O-O {[%emt 0:00:48]} 9. Nf1 {[%emt 0:06:21]} h6 {[%emt 0:10:52]} 10. h3 {[%emt 0:15:05]} Be6 {[%emt 0:02:24]} 11. Bb5 {[%emt 0:01:38]} Ne7 {[%emt 0:00:57][%cal Bc6e7,Be7g6,Bg6f8][%mdl 32]} 12. d4 {[%emt 0:04:46]} c6 {[%emt 0:00:56]} 13. Bd3 {[%emt 0:07:04]} Ng6 {[%emt 0:00:43]} 14. Ng3 {[%emt 0:00:12]} Re8 {[%emt 0:08:39]} 15. Be3 {[%emt 0:02:51]} Qc7 {[%emt 0:15:39][%cal Oa5a4]} 16. Qd2 {[%emt 0:08:41]} Rad8 {[%emt 0:04:06]} 17. Nf5 {[%emt 0:10:21]} (17. Rad1 $14) 17... Bxf5 $11 {[%emt 0:13:13] The position is equal.} 18. exf5 {[%emt 0:00:07]} Nf8 {[%emt 0:00:12]} 19. dxe5 {[%emt 0:13:11]} Bxe3 {[%emt 0:01:59] Weighted Error Value: White=0.11 (very precise) /Black=0.07 (flawless) .  Mistake:       	White=1     	---        Inaccurate:     	---       	Black=1      OK:         	White=6     	Black=5      Best:        	---       	Black=1} 1/2-1/2

[Event "85th Armenian Mens-ch 2024"]
[Site "Yerevan"]
[Date "2024.11.25"]
[Round "2.4"]
[White "Davtyan, Arsen"]
[Black "Pogosyan, Stefan"]
[Result "1-0"]
[Annotator "TA"]
[ECO "D15"]
[WhiteElo "2400"]
[BlackElo "2407"]
[PlyCount "73"]
[EventDate "2024.11.24"]
[EventCountry "ARM"]
[SourceTitle "playchess.com"]
[Source "ChessBase"]
[SourceQuality "1"]
[TimeControl "40/5400+30:1800+30"]

{[%evp 9,73,22,37,16,18,13,40,41,44,37,41,31,35,29,26,21,35,14,29,4,25,25,23,29,35,0,39,37,32,28,43,40,52,44,45,47,50,25,19,3,0,0,0,0,110,100,109,106,110,111,106,109,107,108,96,111,102,102,450,419,591,579,1349,1291,1227,1200]} 1. d4 {[%emt 0:00:03]} d5 {[%emt 0:12:12]} 2. c4 {[%emt 0:00:06]} c6 {[%emt 0:00:05]} 3. Nf3 {[%emt 0:00:07]} Nf6 {[%emt 0:00:05]} 4. Nc3 {[%emt 0:00:15]} a6 {[%emt 0:00:05]} 5. e3 {[%emt 0:01:44]} Bf5 {[%emt 0:00:41]} 6. Nh4 {[%emt 0:07:18]} Bc8 {[%emt 0:10:01]} 7. Qc2 {[%emt 0:05:25]} b5 {[%emt 0:07:06]} 8. b3 {[%emt 0:10:52] White is slightly better.} g6 {[%emt 0:03:30]} 9. Bb2 {[%emt 0:01:40]} Bg7 {[%emt 0:03:02]} 10. Bd3 {[%emt 0:00:44]} O-O {[%emt 0:04:05][%cal Oe7e5]} 11. O-O {[%emt 0:01:00]} Nbd7 {[%emt 0:09:17]} 12. Nf3 {[%emt 0:08:53]} Bb7 {[%emt 0:01:47]} 13. Rad1 {[%emt 0:10:10]} Qc7 {[%emt 0:05:26]} 14. h3 {[%emt 0:16:40]} e6 {[%emt 0:09:00]} 15. c5 {[%emt 0:02:25]} b4 {[%emt 0:00:46]} 16. Na4 {[%emt 0:09:28]} a5 {[%emt 0:00:15]} 17. Qe2 {[%emt 0:00:53]} Qc8 {[%emt 0:06:46]} 18. Ne5 {[%emt 0:02:12]} Ba6 {[%emt 0:01:35]} 19. Bxa6 {[%emt 0:01:24]} Qxa6 {[%emt 0:00:48]} 20. Nd3 {[%emt 0:00:05]} Ne4 {[%emt 0:01:17][%cal Oe6e5]} 21. Qe1 {[%emt 0:01:14]} f5 {[%emt 0:03:40]} 22. f3 {[%emt 0:01:30]} Ng5 {[%emt 0:02:34]} 23. h4 {[%emt 0:08:42][%cal Bh3h4,Bh4h5][%mdl 32]} Nf7 {[%emt 0:00:11]} 24. h5 {[%emt 0:00:04]} g5 {[%emt 0:02:24] Against Nf4} 25. e4 {[%emt 0:02:29][%cal Be3e4,Be4e5][%mdl 32]} Nf6 {[%emt 0:05:37][%cal Rd5e4]} 26. Nb6 {[%emt 0:05:00]} Rae8 {[%emt 0:02:18]} (26... dxe4 $11 27. h6 Bxh6 (27... Nxh6 28. Nxa8 Qxa8 29. fxe4 $14) 28. Nxa8 Rxa8) 27. e5 $1 $36 {[%emt 0:01:29][%mdl 2048] Keeping Black busy.} Nxh5 {[%emt 0:00:04] [#]} 28. g4 $1 {[%emt 0:01:04]} ({Reject} 28. Nd7 $6 f4 $11) 28... fxg4 {[%emt 0:00:46]} 29. fxg4 {[%emt 0:00:01]} Nf4 {[%emt 0:00:07]} 30. Nxf4 {[%emt 0:00:08]} gxf4 {[%emt 0:00:09]} 31. Nd7 $1 {[%emt 0:01:37]} Ng5 {[%emt 0:00:05]} 32. Nxf8 {[%emt 0:00:06]} Rxf8 {[%emt 0:00:01] [#]} 33. Bc1 $1 {[%emt 0:00:19][%cal Og1h1]} Bh6 $2 {[%emt 0:02:10][%mdl 8192] This costs Black the game.} (33... a4 $16 {is tougher.}) 34. Qh4 $18 {[%emt 0:01:20]} Kg7 {[%emt 0:05:11]} (34... Qe2 $142) 35. Bxf4 {[%emt 0:00:23] White is clearly winning.} Nh3+ {[%emt 0:00:45]} 36. Qxh3 {[%emt 0:00:02]} Bxf4 {[%emt 0:00:13]} 37. Rf2 {[%emt 0:00:43] Weighted Error Value: White=0.05 (flawless) /Black=0.41.  Loses game:     	---       	Black=1      Mistake:       	---       	Black=2      Inaccurate:     	White=1     	Black=3      OK:         	White=13    	Black=17     Best:        	White=2     	---        Strong:       	White=4     	---} 1-0

[Event "85th Armenian Mens-ch 2024"]
[Site "Yerevan"]
[Date "2024.11.25"]
[Round "2.5"]
[White "Agasarov, Benik"]
[Black "Shahinyan, Vladimir"]
[Result "1-0"]
[Annotator "TA"]
[ECO "B40"]
[WhiteElo "2410"]
[BlackElo "2161"]
[PlyCount "49"]
[EventDate "2024.11.24"]
[EventCountry "ARM"]
[SourceTitle "playchess.com"]
[Source "ChessBase"]
[SourceQuality "1"]
[TimeControl "40/5400+30:1800+30"]

{[%evp 9,49,18,22,25,25,19,26,0,0,0,12,-20,30,10,56,66,60,59,75,79,68,69,77,74,101,92,92,92,81,74,112,108,122,118,115,111,118,121,130,129,29996,29997]} 1. e4 {[%emt 0:03:16]} c5 {[%emt 0:00:51]} 2. Nf3 {[%emt 0:00:06]} e6 {[%emt 0:00:34]} 3. g3 {[%emt 0:00:43]} Nc6 {[%emt 0:04:28]} 4. Bg2 {[%emt 0:00:13]} d5 {[%emt 0:01:07]} 5. exd5 {[%emt 0:00:25]} exd5 {[%emt 0:00:06]} 6. O-O {[%emt 0:00:06]} Nf6 {[%emt 0:01:36]} 7. d4 {[%emt 0:00:08]} Be7 {[%emt 0:00:38]} 8. h3 {[%emt 0:01:20]} O-O {[%emt 0:02:43]} 9. Nc3 {[%emt 0:00:05]} Ne4 {[%emt 0:06:33]} 10. Be3 {[%emt 0:18:45]} Be6 {[%emt 0:13:42]} (10... Nxc3 $142 11. bxc3 cxd4 12. Nxd4 Nxd4 13. cxd4 (13. Bxd4 Be6 $11) 13... Be6) 11. dxc5 {[%emt 0:09:19]} Nxc3 {[%emt 0:00:26]} (11... Bxc5 $11 {deserves consideration.} 12. Bxc5 Nxc5) 12. bxc3 $14 {[%emt 0:00:04]} Qa5 {[%emt 0:00:21]} 13. Qd3 {[%emt 0:00:29]} Bxc5 {[%emt 0:20:01]} 14. Ng5 {[%emt 0:00:57][%csl Gg5,LRd5,LRh7][%cal Rd3h7]} g6 {[%emt 0:00:09]} 15. Nxe6 {[%emt 0:01:26]} (15. Bxd5 Bxd5 16. Qxd5 Bxe3 17. Qxa5 Nxa5 $11) 15... fxe6 {[%emt 0:00:06] [#]} 16. Bxd5 $1 {[%emt 0:00:59]} Bxe3 {[%emt 0:06:29]} (16... Rad8 17. Bxe6+) 17. Bxe6+ {[%emt 0:01:02]} Kh8 {[%emt 0:07:16]} 18. Qxe3 {[%emt 0:00:52]} Rae8 {[%emt 0:03:17] Strongly threatening ...Rf6.} 19. Qh6 {[%emt 0:08:13]} Qc5 {[%emt 0:05:50] [#]} 20. Rad1 $1 {[%emt 0:03:58][%cal Ba1d1,Bd1e1,Be1e7][%mdl 32]} Ne5 {[%emt 0:04:48]} (20... Rxe6 $2 {perishes.} 21. Rd7 $18) 21. Bd5 {[%emt 0:03:39]} Qxc3 {[%emt 0:04:39]} 22. Bxb7 {[%emt 0:01:49]} Qxc2 {[%emt 0:01:16]} 23. Rde1 {[%emt 0:04:12][%cal Oe1e5] Black must now prevent Rxe5!.} Qb2 {[%emt 0:05:57]} 24. Bg2 {[%emt 0:01:27]} Nd3 $2 {[%emt 0:01:32][%mdl 8192] [#]} (24... Qc3 $16) 25. Re7 $3 {[%emt 0:00:15][%mdl 512]} 1-0

[Event "85th Armenian Mens-ch 2024"]
[Site "Yerevan"]
[Date "2024.11.25"]
[Round "2.6"]
[White "Babujian, Levon"]
[Black "Sahakyan, Aleks"]
[Result "1-0"]
[Annotator "TA"]
[ECO "D35"]
[WhiteElo "2330"]
[BlackElo "2380"]
[PlyCount "87"]
[EventDate "2024.11.24"]
[EventCountry "ARM"]
[SourceTitle "playchess.com"]
[Source "ChessBase"]
[SourceQuality "1"]
[TimeControl "40/5400+30:1800+30"]

{[%evp 12,87,23,19,41,39,39,25,24,15,25,13,122,114,113,31,68,25,69,62,57,60,183,188,207,199,193,196,192,124,129,133,169,155,152,150,144,146,154,156,209,206,230,210,197,199,231,164,163,146,158,144,138,132,130,127,218,166,188,176,175,185,281,266,297,289,567,542,728,693,695,687,1014,1014,1520,1533,1294,1282]} 1. d4 {[%emt 0:00:34]} d5 {[%emt 0:00:07]} 2. c4 {[%emt 0:00:06]} e6 {[%emt 0:00:03]} 3. Nc3 {[%emt 0:00:03]} Nf6 {[%emt 0:00:04]} 4. cxd5 {[%emt 0:00:12]} exd5 {[%emt 0:00:05]} 5. Bg5 {[%emt 0:00:05][%cal Bc1g5,Bg5h4,Bh4g3][%mdl 32]} Bb4 {[%emt 0:00:04]} 6. e3 {[%emt 0:01:06]} h6 {[%emt 0:00:10]} 7. Bh4 {[%emt 0:00:13]} g5 {[%emt 0:00:05]} 8. Bg3 {[%emt 0:00:07]} Ne4 {[%emt 0:00:05]} 9. Qc2 {[%emt 0:00:07]} Bf5 {[%emt 0:12:34]} 10. Bd3 {[%emt 0:02:00]} Nc6 {[%emt 0:08:39]} 11. Nge2 {[%emt 0:04:46]} h5 {[%emt 0:04:11]} (11... Nxg3 $11 12. hxg3 Bxd3 13. Qxd3 Qd7) 12. O-O $16 {[%emt 0:03:10][%cal Og3c7]} Nxg3 {[%emt 0:14:31]} 13. Nxg3 {[%emt 0:01:01]} ({White should try} 13. fxg3 $16 Be6 14. e4) 13... Be6 {[%emt 0:06:52]} 14. Nf5 {[%emt 0:06:08]} Bf8 {[%emt 0:06:27] Repels Ng7+} 15. a3 {[%emt 0:04:39]} Qd7 {[%emt 0:08:00]} 16. Na4 $36 {[%emt 0:03:10][%mdl 2048] White is more active. A dynamic duo of knights.} Na5 {[%emt 0:14:54]} (16... O-O-O $14) 17. Nc5 $18 {[%emt 0:01:42]} Bxc5 {[%emt 0:01:10]} 18. Ng7+ {[%emt 0:01:39]} (18. dxc5 $6 O-O-O $16) (18. Qxc5 Nb3 (18... Bxf5 19. Bxf5 Qxf5 20. Qxa5 $14) 19. Ng7+ Kd8 $11) 18... Kd8 {[%emt 0:01:22]} 19. dxc5 {[%emt 0:00:21]} Nc6 {[%emt 0:01:33]} 20. e4 {[%emt 0:04:02]} (20. b4 $18) 20... d4 $16 {[%emt 0:03:08]} 21. Bb5 {[%emt 0:01:41] White is much more active.} f6 {[%emt 0:02:10]} 22. Bxc6 {[%emt 0:00:57]} bxc6 {[%emt 0:00:09]} 23. Nxe6+ {[%emt 0:00:06]} Qxe6 {[%emt 0:00:01]} 24. Rad1 {[%emt 0:00:15][%cal Ba1d1,Bd1d4,Bd4a4,Ba4a7][%mdl 32]} Ke7 {[%emt 0:00:41]} 25. Rxd4 {[%emt 0:00:34]} Rad8 {[%emt 0:00:11] Prevents e5.} (25... Qe5 $16 26. Rd3 g4) 26. Ra4 $18 {[%emt 0:06:10]} Qe5 {[%emt 0:01:38]} 27. Rxa7 {[%emt 0:00:50]} Rd4 {[%emt 0:00:24]} 28. Qc3 {[%emt 0:00:30][%cal Oa7c7]} Rhd8 {[%emt 0:00:51]} 29. Qg3 {[%emt 0:01:02]} Qxg3 {[%emt 0:01:50]} 30. hxg3 {[%emt 0:00:05][%mdl 4096] Endgame KRR-KRR. White is two pawns up.} R8d7 {[%emt 0:01:18]} 31. Ra6 {[%emt 0:03:34]} Rxe4 {[%emt 0:01:55]} 32. Rxc6 {[%emt 0:00:17]} Re2 {[%emt 0:00:04]} 33. b4 {[%emt 0:00:13]} Ra2 {[%emt 0:00:15]} (33... Rb2 $16 34. Ra6 Rdd2) 34. Kh2 {[%emt 0:05:09]} ({Don't take} 34. Re1+ $6 Kf7 $16) 34... Kf7 {[%emt 0:05:53] [#]} 35. Ra6 $1 {[%emt 0:00:38]} Rb2 {[%emt 0:03:30]} 36. Ra7 {[%emt 0:01:32]} Kg6 {[%emt 0:00:47]} (36... Re7 $142 37. c6 g4) 37. c6 {[%emt 0:01:13]} Re7 {[%emt 0:01:34]} 38. Rb7 {[%emt 0:00:06]} g4 $2 {[%emt 0:00:59]} (38... f5 {keeps fighting.} 39. b5 Kf6) 39. b5 {[%emt 0:00:29]} Re4 {[%emt 0:00:04]} 40. Rxc7 {[%emt 0:00:00]} Rxb5 {[%emt 0:00:00]} 41. Rc1 {[%emt 0:03:48] and Rb7 would now be decisive Against Rc4} Rb2 {[%emt 0:01:17]} 42. Rc8 {[%emt 0:01:10]} Ree2 {[%emt 0:03:51]} 43. c7 {[%emt 0:00:16] Intending Rg8+ and mate.} Rxf2 {[%emt 0:00:41]} 44. Rg1 {[%emt 0:00:19]} 1-0